{"text_format":"1","workbook":"xlsx","n_sheets":13,"sheets":["Consideraciones","PART 1","Gráfica PART 1","PCI 1","Gráfica PCI 1","PART 2","Gráfica PART 2","PCI 2","Gráfica PCI 2","PART 3","Gráfica PART 3","PCI 3","Gráfica PCI 3"],"not_rendered":{"charts":6,"images":3,"macros":1,"external_links":0,"defined_names":0,"comments":0,"pivot_tables":0},"unopened":[],"bounds":{"document_bytes":16777216,"sheet_cells":100000,"rows_first":2000,"rows_last":500,"rows_between":2000,"halvings":0,"cell_chars":16384,"cell_head_chars":4096},"cells_cut":0,"cells_raw":0,"read":"whole","date_system":"1900"}

{"sheet":"Consideraciones","index":0,"n_rows":0,"n_cols":0,"rows_kept":0,"cut":false,"hidden":false,"merged":[]}

{"sheet":"PART 1","index":1,"n_rows":21,"n_cols":30,"rows_kept":21,"cut":false,"hidden":false,"merged":[[11,6,11,24],[15,29,16,29],[15,22,16,25],[15,26,16,28],[2,1,2,28],[3,1,3,28],[4,1,4,28],[5,1,5,28],[7,6,7,11],[7,17,7,26],[8,6,8,10],[8,17,8,26],[10,0,10,5],[11,0,11,5],[10,6,10,24],[15,3,15,5],[20,22,20,25],[20,26,20,28],[20,0,20,2],[20,6,20,9],[20,10,20,13],[20,14,20,17],[20,18,20,21],[19,22,19,25],[19,26,19,28],[18,0,18,2],[18,6,18,9],[18,10,18,13],[18,14,18,17],[19,0,19,2],[19,6,19,9],[19,10,19,13],[19,14,19,17],[19,18,19,21],[15,0,16,2],[14,0,14,29],[18,18,18,21],[18,22,18,25],[17,0,17,2],[17,6,17,9],[17,10,17,13],[17,14,17,17],[17,18,17,21],[17,22,17,25],[17,26,17,28],[15,6,16,9],[15,10,16,13],[15,14,16,17],[15,18,16,21],[18,26,18,28]]}
[]
[]
[null,"Secretaría de Educación Pública del Estado de Baja California Sur"]
[null,"Dirección de Educación Secundaria"]
[null,"NIVELES DE COMUNICACIÓN Y PARTICIPACIÓN DE ALUMNOS"]
[null,"PRIMER GRADO "]
[]
[null,null,null,null,null,null,"PERIODO EVALUACIÓN:",null,null,null,null,null,null,null,null,null,null,"CONCENTRADO GENERAL"]
[null,null,null,null,null,null,"CICLO ESCOLAR :",null,null,null,null,null,null,null,null,null,null,"2020 - 2021"]
[]
["DIRECCIÓN: ",null,null,null,null,null,"DIRECCIÓN DE EDUCACIÓN SECUNDARIA"]
["DIRECTOR:",null,null,null,null,null,"PROFR. RUMUALDO RAMÍREZ GUTIÉRREZ"]
[]
[]
[" COMUNICACIÓN Y PARTICIPACIÓN CON ALUMNOS  (Registrar cantidad de alumnos)"]
["MODALIDAD",null,null,"EXISTENCIA (Alumnos inscritos)",null,null,"COMUNICACIÓN Y PARTICIPACIÓN SOSTENIDA",null,null,null,"%",null,null,null,"COMUNICACIÓN Y PARTICIPACIÓN INTERMITENTE",null,null,null,"%",null,null,null,"COMUNICACIÓN PRÁCTICAMENTE INEXISTENTE",null,null,null,"%",null,null,"TOTAL"]
[null,null,null,"H","M","T"]
["I PERIODO",null,null,null,null,{"$f":"SUM(D18,E18)","v":0},9729,null,null,null,{"$f":"IFERROR(G18/F18*100,\"\")","v":""},null,null,null,3437,null,null,null,{"$f":"IFERROR(O18/F18*100,\"\")","v":""},null,null,null,2392,null,null,null,{"$f":"IFERROR(W18/F18*100,\"\")","v":""},null,null,{"$f":"SUM(G18,O18,W18)","v":15558}]
["II PERIODO",null,null,6986,7043,{"$f":"SUM(D19,E19)","v":14029},7905,null,null,null,{"$f":"IFERROR(G19/F19*100,\"\")","v":56.347565756646944},null,null,null,4476,null,null,null,{"$f":"IFERROR(O19/F19*100,\"\")","v":31.90533894076556},null,null,null,1648,null,null,null,{"$f":"IFERROR(W19/F19*100,\"\")","v":11.747095302587498},null,null,14029]
["III PERIODO",null,null,6809,6869,13678,10312,null,null,null,75.391139055417455,null,null,null,2634,null,null,null,19.257201345225912,null,null,null,732,null,null,null,5.3516595993566316,null,null,13678]
["TOTAL",null,null,{"$f":"SUM(D18:D20)","v":13795},{"$f":"SUM(E18:E20)","v":13912},{"$f":"SUM(F18:F20)","v":27707},{"$f":"SUM(G18:J20)","v":27946},null,null,null,{"$f":"IFERROR(G21/F21*100,\"\")","v":100.86259789944781},null,null,null,{"$f":"SUM(O18:R20)","v":10547},null,null,null,38.066192658894863,null,null,null,{"$f":"SUM(W18:Z20)","v":4772},null,null,null,17.223084419099866,null,null,{"$f":"SUM(G21,O21,W21)","v":43265}]

{"sheet":"Gráfica PART 1","index":2,"n_rows":14,"n_cols":14,"rows_kept":14,"cut":false,"hidden":false,"merged":[[0,0,0,32],[2,1,2,29],[3,1,3,29],[4,1,4,29],[5,1,5,12],[5,13,5,25],[11,0,30,0],[6,1,6,12],[6,13,6,25],[8,0,8,2],[9,0,9,2],[8,5,8,28],[9,4,9,28]]}
[]
[]
[null,"Secretaría de Educación Pública del Estado de Baja California Sur"]
[null,"Dirección de Educación Secundaria"]
[null,"PRIMER GRADO "]
[null,"PERIODO EVALUACIÓN:",null,null,null,null,null,null,null,null,null,null,null,{"$f":"'PART 1'!R8","v":"CONCENTRADO GENERAL"}]
[null,"CICLO ESCOLAR :",null,null,null,null,null,null,null,null,null,null,null,{"$f":"'PART 1'!R9","v":"2020 - 2021"}]
[]
["DIRECCIÓN: ",null,null,null,null,{"$f":"'PART 1'!G11","v":"DIRECCIÓN DE EDUCACIÓN SECUNDARIA"}]
["DIRECTOR:",null,null,null,{"$f":"'PART 1'!G12","v":"PROFR. RUMUALDO RAMÍREZ GUTIÉRREZ"}]
[]
[]
[null,null,null,"COMUNICACIÓN Y PARTICIPACIÓN SOSTENIDA","COMUNICACIÓN Y PARTICIPACIÓN INTERMITENTE","COMUNICACIÓN PRÁCTICAMENTE INEXISTENTE"]
[null,null,null,{"$f":"'PART 1'!K21/100","v":1.008625978994478},{"$f":"'PART 1'!S21/100","v":0.38066192658894865},{"$f":"'PART 1'!AA21/100","v":0.17223084419099866}]

{"sheet":"PCI 1","index":3,"n_rows":32,"n_cols":13,"rows_kept":32,"cut":false,"hidden":false,"merged":[[17,0,17,2],[22,0,31,4],[22,5,22,12],[23,5,23,12],[24,5,24,12],[25,5,25,12],[26,5,26,12],[18,0,18,15],[29,13,29,15],[30,13,30,15],[29,5,29,12],[30,5,30,12],[26,13,26,15],[27,13,27,15],[17,12,17,15],[28,13,28,15],[12,0,13,2],[14,0,14,2],[15,0,15,2],[16,0,16,2],[9,0,9,1],[10,0,10,1],[6,6,6,10],[7,6,7,10],[10,2,10,11],[2,1,2,13],[3,1,3,13],[4,1,4,13],[6,1,6,5],[7,1,7,5],[0,15,11,15],[20,0,20,15],[31,13,31,15],[22,13,22,15],[23,13,23,15],[24,13,24,15],[25,13,25,15],[9,2,9,11],[12,3,12,15],[27,5,27,12],[28,5,28,12],[31,5,31,12],[13,12,13,15],[14,12,14,15],[15,12,15,15],[16,12,16,15]]}
[]
[]
[null,"Secretaría de Educación Pública del Estado de Baja California Sur"]
[null,"Dirección de Educación Secundaria"]
[null,"PRIMER GRADO "]
[]
[null,"PERIODO EVALUACIÓN:",null,null,null,null,{"$f":"'PART 1'!R8","v":"CONCENTRADO GENERAL"}]
[null,"CICLO ESCOLAR :",null,null,null,null,{"$f":"'PART 1'!R9","v":"2020 - 2021"}]
[]
["DIRECCIÓN: ",null,{"$f":"'PART 1'!G11","v":"DIRECCIÓN DE EDUCACIÓN SECUNDARIA"}]
["DIRECTOR:",null,{"$f":"'Gráfica PART 1'!E10","v":"PROFR. RUMUALDO RAMÍREZ GUTIÉRREZ"}]
[]
["MODALIDAD",null,null,"COMUNICACIÓN INTERMITENTE Y BAJA PARTICIPACIÓN EN ACTIVIDADES PROPUESTAS POR EL PROFESOR\n(Registrar cantidad de alumnos)"]
[null,null,null,"Lengua Materna (Español)","Matemáticas","Lengua Extranjera (Inglés)","Ciencias (Biología)","Historia","Geografía","Formación Cívica y Ética","Tecnología","Educación Física","Artes"]
["I PERIODO"]
["II PERIODO",null,null,2922,2800,2766,2994,2979,2898,2861,2836,3102,2995]
["III PERIODO",null,null,2348,2254,2244,2424,2191,2134,2234,2255,2373,2236]
["TOTAL",null,null,{"$f":"SUM(D15:D17)","v":5270},5054,5010,5418,5170,5032,5095,5091,5475,5231]
[]
[]
["RUBRO PARA IDENTIFICAR LAS CAUSAS SOBRE LA COMUNICACIÓN INTERMITENTE"]
[]
["Señale en orden de importancia  las tres principales causas que usted considere que han influido para que los alumnos mantengan una COMUNICACIÓN INTERMITENTE con sus maestras (os).                                                                                                                                                                                               Indique númericamente 1,2,3.",null,null,null,null,"Algunos alumnos se conectan desde un dispositivo móvil como el celular, através de recargas de datos, lo que origina que solo AVECES, y en algunas asignaturas, se puedan conectar para mantener comunicación con sus maestras (os) y envíar las actividades planteadas."]
[null,null,null,null,null,"Algunos alumnos trabajan para contribuir a los gastos en el hogar"]
[null,null,null,null,null,"Las condiciones de movilidad familiar, como el cambio de domicilio, visitar a parientes en horarios de clases, acudir al médico o realizar actividades fuera del hogar (por mencionar algunas), no le permiten al alumno mantenerse conectado regularmente con sus maestras (os) y envíar las actividades planteadas."]
[null,null,null,null,null,"Algunos alumnos no tienen acceso a ninguna herramienta de conectividad en el hogar para mantener una comunicación constante con sus maestras (os), por lo que requieren desplazarse a otros sitios donde puedan acceder a ellos, como ir a casa de un familiar, vecino o a un ciber-café para hacer uso de ellas, propiciando que no se mantengan regularmente comunicados."]
[null,null,null,null,null,"Algunos alumnos cuentan con una sola herramienta de conectividad en el hogar, y deben compartir su uso con otros integrantes de su familia (por ejemplo, con hermanos que también estudian) generando que no siempre puedan mantenerse conectados con sus maestras (os) y estar al corriente en la entrega de actividades planteadas."]
[null,null,null,null,null,"Algunos alumnos tienen todas las facilidades para acceder a las clases con sus maestras(os) y entregar oportunamente las actividades planteadas, pero no tienen el interés personal para hacerlo."]
[null,null,null,null,null,"Algunos alumnos se encuentran solos en el hogar durante la elaboración de las actividades planteadas por sus maestras (os), requiriendo de asesoría y supervisión para su elaboración, lo que propicia inseguridad en el envío de las mismas, optando por no mandarlas para su revisión y registro. "]
[null,null,null,null,null,"Algunos alumnos están padeciendo la ausencia de sus padres o de algún miembro de su familia a causa de enfermedad o la pérdida de un familiar en el hogar."]
[null,null,null,null,null,"Algunos alumnos se hacen cargo de sus hermanos menores, al estar ausente los padres por situación laboral u otra índole."]
[null,null,null,null,null,"Registre otras causas (si fuera el caso) \n\n"]

{"sheet":"Gráfica PCI 1","index":4,"n_rows":14,"n_cols":16,"rows_kept":14,"cut":false,"hidden":false,"merged":[[0,0,0,32],[2,1,2,29],[3,1,3,29],[4,1,4,29],[5,1,5,12],[5,13,5,25],[11,0,30,0],[6,1,6,12],[6,13,6,25],[8,0,8,2],[8,5,8,28],[9,0,9,2],[12,15,12,17],[13,15,13,17],[9,4,9,28]]}
[]
[]
[null,"Secretaría de Educación Pública del Estado de Baja California Sur"]
[null,"Dirección de Educación Secundaria"]
[null,"PRIMER GRADO "]
[null,"PERIODO EVALUACIÓN:",null,null,null,null,null,null,null,null,null,null,null,{"$f":"'PART 1'!R8","v":"CONCENTRADO GENERAL"}]
[null,"CICLO ESCOLAR :",null,null,null,null,null,null,null,null,null,null,null,{"$f":"'PART 1'!R9","v":"2020 - 2021"}]
[]
["DIRECCIÓN: ",null,null,null,null,{"$f":"'PART 1'!G11","v":"DIRECCIÓN DE EDUCACIÓN SECUNDARIA"}]
["DIRECTOR:",null,null,null,{"$f":"'PCI 1'!C11","v":"PROFR. RUMUALDO RAMÍREZ GUTIÉRREZ"}]
[]
[]
[null,"Lengua Materna (Español)","Matemáticas","Lengua Extranjera (Inglés)","Ciencias (Biología)","Historia","Geografía","Formación Cívica y Ética","Tecnología","Educación Física","Artes",null,null,null,null,"TOTAL"]
[null,{"$f":"'PCI 1'!D18/P14","v":0.10164718589669405},{"$f":"'PCI 1'!E18/P14","v":9.748100142730394E-2},{"$f":"'PCI 1'!F18/P14","v":9.6632334220576321E-2},{"$f":"'PCI 1'!G18/P14","v":0.10450179377386877},{"$f":"'PCI 1'!H18/P14","v":9.9718396790494934E-2},{"$f":"'PCI 1'!I18/P14","v":9.7056667823940124E-2},{"$f":"'PCI 1'!J18/P14","v":9.8271804960845588E-2},{"$f":"'PCI 1'!K18/P14","v":9.8194653396597623E-2},{"$f":"'PCI 1'!L18/P14","v":0.10560120356440227},{"$f":"'PCI 1'!M18/P14","v":0.10089495814527639},null,null,null,null,{"$f":"SUM('PCI 1'!D18:P18)","v":51846}]

{"sheet":"PART 2","index":5,"n_rows":21,"n_cols":30,"rows_kept":21,"cut":false,"hidden":false,"merged":[[15,29,16,29],[2,1,2,28],[3,1,3,28],[4,1,4,28],[5,1,5,28],[7,6,7,11],[7,17,7,26],[8,6,8,10],[8,17,8,26],[10,0,10,5],[10,6,10,24],[11,0,11,5],[14,0,14,29],[15,0,16,2],[15,3,15,5],[15,10,16,13],[15,14,16,17],[15,18,16,21],[15,22,16,25],[11,6,11,24],[15,26,16,28],[17,22,17,25],[17,26,17,28],[18,0,18,2],[18,6,18,9],[18,10,18,13],[18,14,18,17],[18,18,18,21],[18,22,18,25],[18,26,18,28],[17,0,17,2],[17,6,17,9],[17,10,17,13],[17,14,17,17],[17,18,17,21],[15,6,16,9],[19,26,19,28],[19,0,19,2],[19,6,19,9],[19,10,19,13],[19,14,19,17],[19,18,19,21],[19,22,19,25],[20,22,20,25],[20,26,20,28],[20,0,20,2],[20,6,20,9],[20,10,20,13],[20,14,20,17],[20,18,20,21]]}
[]
[]
[null,"Secretaría de Educación Pública del Estado de Baja California Sur"]
[null,"Dirección de Educación Secundaria"]
[null,"NIVELES DE COMUNICACIÓN Y PARTICIPACIÓN DE ALUMNOS"]
[null,"SEGUNDO GRADO "]
[]
[null,null,null,null,null,null,"PERIODO EVALUACIÓN:",null,null,null,null,null,null,null,null,null,null,{"$f":"'PART 1'!R8","v":"CONCENTRADO GENERAL"}]
[null,null,null,null,null,null,"CICLO ESCOLAR :",null,null,null,null,null,null,null,null,null,null,{"$f":"'PART 1'!R9","v":"2020 - 2021"}]
[]
["DIRECCIÓN: ",null,null,null,null,null,{"$f":"'PART 1'!G11","v":"DIRECCIÓN DE EDUCACIÓN SECUNDARIA"}]
["DIRECTOR:",null,null,null,null,null,{"$f":"'Gráfica PCI 1'!E10","v":"PROFR. RUMUALDO RAMÍREZ GUTIÉRREZ"}]
[]
[]
[" COMUNICACIÓN Y PARTICIPACIÓN CON ALUMNOS  (Registrar cantidad de alumnos)"]
["GRUPO",null,null,"EXISTENCIA (Alumnos inscritos)",null,null,"COMUNICACIÓN Y PARTICIPACIÓN SOSTENIDA",null,null,null,"%",null,null,null,"COMUNICACIÓN Y PARTICIPACIÓN INTERMITENTE",null,null,null,"%",null,null,null,"COMUNICACIÓN PRÁCTICAMENTE INEXISTENTE",null,null,null,"%",null,null,"TOTAL"]
[null,null,null,"H","M","T"]
["I PERIODO",null,null,null,null,{"$f":"SUM(D18,E18)","v":0},9088,null,null,null,{"$f":"IFERROR(G18/F18*100,\"\")","v":""},null,null,null,3460,null,null,null,{"$f":"IFERROR(O18/F18*100,\"\")","v":""},null,null,null,2495,null,null,null,{"$f":"IFERROR(W18/F18*100,\"\")","v":""},null,null,{"$f":"SUM(G18,O18,W18)","v":15043}]
["II PERIODO",null,null,6783,6763,{"$f":"SUM(D19,E19)","v":13546},7527,null,null,null,{"$f":"IFERROR(G19/F19*100,\"\")","v":55.566218809980803},null,null,null,4138,null,null,null,{"$f":"IFERROR(O19/F19*100,\"\")","v":30.54776317732172},null,null,null,1881,null,null,null,{"$f":"IFERROR(W19/F19*100,\"\")","v":13.886018012697477},null,null,13546]
["III PERIODO",null,null,6656,6648,13304,9765,null,null,null,73.398977751052314,null,null,null,2688,null,null,null,20.204449789536984,null,null,null,851,null,null,null,6.3965724594107032,null,null,13304]
["TOTAL",null,null,{"$f":"SUM(D18:D20)","v":13439},{"$f":"SUM(E18:E20)","v":13411},{"$f":"SUM(F18:F20)","v":26850},{"$f":"SUM(G18:J20)","v":26380},null,null,null,98.249534450651765,null,null,null,{"$f":"SUM(O18:R20)","v":10286},null,null,null,38.309124767225327,null,null,null,{"$f":"SUM(W18:Z20)","v":5227},null,null,null,19.467411545623836,null,null,{"$f":"SUM(G21,O21,W21)","v":41893}]

{"sheet":"Gráfica PART 2","index":6,"n_rows":14,"n_cols":14,"rows_kept":14,"cut":false,"hidden":false,"merged":[[0,0,0,32],[2,1,2,29],[3,1,3,29],[4,1,4,29],[5,1,5,12],[5,13,5,25],[11,0,30,0],[6,1,6,12],[6,13,6,25],[8,0,8,2],[8,5,8,28],[9,0,9,2],[9,4,9,28]]}
[]
[]
[null,"Secretaría de Educación Pública del Estado de Baja California Sur"]
[null,"Dirección de Educación Secundaria"]
[null,"SEGUNDO GRADO "]
[null,"PERIODO EVALUACIÓN:",null,null,null,null,null,null,null,null,null,null,null,{"$f":"'PART 1'!R8","v":"CONCENTRADO GENERAL"}]
[null,"CICLO ESCOLAR :",null,null,null,null,null,null,null,null,null,null,null,{"$f":"'PART 1'!R9","v":"2020 - 2021"}]
[]
["DIRECCIÓN: ",null,null,null,null,{"$f":"'PART 1'!G11","v":"DIRECCIÓN DE EDUCACIÓN SECUNDARIA"}]
["DIRECTOR:",null,null,null,{"$f":"'PART 2'!G12","v":"PROFR. RUMUALDO RAMÍREZ GUTIÉRREZ"}]
[]
[]
[null,null,null,"COMUNICACIÓN Y PARTICIPACIÓN SOSTENIDA","COMUNICACIÓN Y PARTICIPACIÓN INTERMITENTE","COMUNICACIÓN PRÁCTICAMENTE INEXISTENTE"]
[null,null,null,{"$f":"'PART 2'!K21/100","v":0.98249534450651765},{"$f":"'PART 2'!S21/100","v":0.38309124767225328},{"$f":"'PART 2'!AA21/100","v":0.19467411545623836}]

{"sheet":"PCI 2","index":7,"n_rows":32,"n_cols":13,"rows_kept":32,"cut":false,"hidden":false,"merged":[[31,5,31,12],[31,13,31,15],[29,13,29,15],[30,13,30,15],[29,5,29,12],[22,0,31,4],[22,5,22,12],[22,13,22,15],[23,5,23,12],[23,13,23,15],[24,5,24,12],[24,13,24,15],[25,5,25,12],[25,13,25,15],[26,5,26,12],[26,13,26,15],[27,5,27,12],[27,13,27,15],[28,5,28,12],[28,13,28,15],[30,5,30,12],[20,0,20,15],[17,8,17,9],[17,0,17,2],[17,12,17,15],[16,0,16,2],[16,12,16,15],[18,0,18,15],[14,8,14,9],[15,8,15,9],[16,8,16,9],[14,0,14,2],[14,12,14,15],[15,0,15,2],[15,12,15,15],[12,0,13,2],[12,3,12,15],[13,12,13,15],[13,8,13,9],[0,15,11,15],[2,1,2,13],[3,1,3,13],[4,1,4,13],[6,1,6,5],[6,6,6,10],[7,1,7,5],[7,6,7,10],[9,0,9,1],[9,2,9,11],[10,0,10,1],[10,2,10,11]]}
[]
[]
[null,"Secretaría de Educación Pública del Estado de Baja California Sur"]
[null,"Dirección de Educación Secundaria"]
[null,"SEGUNDO GRADO "]
[]
[null,"PERIODO EVALUACIÓN:",null,null,null,null,{"$f":"'PART 1'!R8","v":"CONCENTRADO GENERAL"}]
[null,"CICLO ESCOLAR :",null,null,null,null,{"$f":"'PART 1'!R9","v":"2020 - 2021"}]
[]
["DIRECCIÓN: ",null,{"$f":"'PART 1'!G11","v":"DIRECCIÓN DE EDUCACIÓN SECUNDARIA"}]
["DIRECTOR:",null,{"$f":"'Gráfica PART 2'!E10","v":"PROFR. RUMUALDO RAMÍREZ GUTIÉRREZ"}]
[]
["MODALIDAD",null,null,"COMUNICACIÓN INTERMITENTE Y BAJA PARTICIPACIÓN EN ACTIVIDADES PROPUESTAS POR EL PROFESOR\n(Registrar cantidad de alumnos)"]
[null,null,null,"Lengua Materna (Español)","Matemáticas","Lengua Extranjera (Inglés)","Ciencias (Física)","Historia","Formación Cívica y Ética",null,"Tecnología","Educación Física","Artes"]
["I PERIODO"]
["II PERIODO",null,null,3094,2656,2576,2917,2963,2805,null,2780,2913,3098]
["III PERIODO",null,null,2547,2544,2416,2389,2255,2244,null,2425,2317,2559]
["TOTAL",null,null,{"$f":"SUM(D15:D17)","v":5641},{"$f":"SUM(E15:E17)","v":5200},{"$f":"SUM(F15:F17)","v":4992},{"$f":"SUM(G15:G17)","v":5306},{"$f":"SUM(H15:H17)","v":5218},{"$f":"SUM(I15:J17)","v":5049},null,{"$f":"SUM(K15:K17)","v":5205},{"$f":"SUM(L15:L17)","v":5230},{"$f":"SUM(M15:M17)","v":5657}]
[]
[]
["RUBRO PARA IDENTIFICAR LAS CAUSAS SOBRE LA COMUNICACIÓN INTERMITENTE"]
[]
["Señale en orden de importancia  las tres principales causas que usted considere que han influido para que los alumnos mantengan una COMUNICACIÓN INTERMITENTE con sus maestras (os).                                                                                                                                                                                               Indique númericamente 1,2,3.",null,null,null,null,"Algunos alumnos se conectan desde un dispositivo móvil como el celular, através de recargas de datos, lo que origina que solo AVECES, y en algunas asignaturas, se puedan conectar para mantener comunicación con sus maestras (os) y envíar las actividades planteadas."]
[null,null,null,null,null,"Algunos alumnos trabajan para contribuir a los gastos en el hogar"]
[null,null,null,null,null,"Las condiciones de movilidad familiar, como el cambio de domicilio, visitar a parientes en horarios de clases, acudir al médico o realizar actividades fuera del hogar (por mencionar algunas), no le permiten al alumno mantenerse conectado regularmente con sus maestras (os) y envíar las actividades planteadas."]
[null,null,null,null,null,"Algunos alumnos no tienen acceso a ninguna herramienta de conectividad en el hogar para mantener una comunicación constante con sus maestras (os), por lo que requieren desplazarse a otros sitios donde puedan acceder a ellos, como ir a casa de un familiar, vecino o a un ciber-café para hacer uso de ellas, propiciando que no se mantengan regularmente comunicados."]
[null,null,null,null,null,"Algunos alumnos cuentan con una sola herramienta de conectividad en el hogar, y deben compartir su uso con otros integrantes de su familia (por ejemplo, con hermanos que también estudian) generando que no siempre puedan mantenerse conectados con sus maestras (os) y estar al corriente en la entrega de actividades planteadas."]
[null,null,null,null,null,"Algunos alumnos tienen todas las facilidades para acceder a las clases con sus maestras(os) y entregar oportunamente las actividades planteadas, pero no tienen el interés personal para hacerlo."]
[null,null,null,null,null,"Algunos alumnos se encuentran solos en el hogar durante la elaboración de las actividades planteadas por sus maestras (os), requiriendo de asesoría y supervisión para su elaboración, lo que propicia inseguridad en el envío de las mismas, optando por no mandarlas para su revisión y registro. "]
[null,null,null,null,null,"Algunos alumnos están padeciendo la ausencia de sus padres o de algún miembro de su familia a causa de enfermedad o la pérdida de un familiar en el hogar."]
[null,null,null,null,null,"Algunos alumnos se hacen cargo de sus hermanos menores, al estar ausente los padres por situación laboral u otra índole."]
[null,null,null,null,null,"Registre otras causas (si fuera el caso) \n\n"]

{"sheet":"Gráfica PCI 2","index":8,"n_rows":14,"n_cols":15,"rows_kept":14,"cut":false,"hidden":false,"merged":[[0,0,0,32],[2,1,2,29],[3,1,3,29],[4,1,4,29],[5,1,5,12],[5,13,5,25],[11,0,30,0],[6,1,6,12],[6,13,6,25],[8,0,8,2],[8,5,8,28],[9,0,9,2],[12,14,12,16],[13,14,13,16],[9,4,9,28]]}
[]
[]
[null,"Secretaría de Educación Pública del Estado de Baja California Sur"]
[null,"Dirección de Educación Secundaria"]
[null,"SEGUNDO GRADO "]
[null,"PERIODO EVALUACIÓN:",null,null,null,null,null,null,null,null,null,null,null,{"$f":"'PART 1'!R8","v":"CONCENTRADO GENERAL"}]
[null,"CICLO ESCOLAR :",null,null,null,null,null,null,null,null,null,null,null,{"$f":"'PART 1'!R9","v":"2020 - 2021"}]
[]
["DIRECCIÓN: ",null,null,null,null,{"$f":"'PART 1'!G11","v":"DIRECCIÓN DE EDUCACIÓN SECUNDARIA"}]
["DIRECTOR:",null,null,null,{"$f":"'PCI 2'!C11","v":"PROFR. RUMUALDO RAMÍREZ GUTIÉRREZ"}]
[]
[]
[null,"Lengua Materna (Español)","Matemáticas","Lengua Extranjera (Inglés)","Ciencias (Física)","Historia","Formación Cívica y Ética","Tecnología","Educación Física","Artes",null,null,null,null,"TOTAL"]
[null,{"$f":"'PCI 2'!D18/O14","v":0.11876289527980126},{"$f":"'PCI 2'!E18/O14","v":0.10947829382289781},{"$f":"'PCI 2'!F18/O14","v":0.10509916206998189},{"$f":"'PCI 2'!G18/O14","v":0.11170996673544149},{"$f":"'PCI 2'!H18/O14","v":0.10985725714766938},{"$f":"'PCI 2'!I18/O14","v":0.1062992125984252},{"$f":"'PCI 2'!K18/O14","v":0.10958356141311214},{"$f":"'PCI 2'!L18/O14","v":0.11010989936418375},{"$f":"'PCI 2'!M18/O14","v":0.11909975156848709},null,null,null,null,{"$f":"SUM('PCI 2'!D18:P18)","v":47498}]

{"sheet":"PART 3","index":9,"n_rows":21,"n_cols":30,"rows_kept":21,"cut":false,"hidden":false,"merged":[[15,29,16,29],[2,1,2,28],[3,1,3,28],[4,1,4,28],[5,1,5,28],[7,6,7,11],[7,17,7,26],[8,6,8,10],[8,17,8,26],[10,0,10,5],[10,6,10,24],[11,0,11,5],[14,0,14,29],[15,0,16,2],[15,3,15,5],[15,10,16,13],[15,14,16,17],[15,18,16,21],[15,22,16,25],[11,6,11,24],[15,26,16,28],[17,22,17,25],[17,26,17,28],[18,0,18,2],[18,6,18,9],[18,10,18,13],[18,14,18,17],[18,18,18,21],[18,22,18,25],[18,26,18,28],[17,0,17,2],[17,6,17,9],[17,10,17,13],[17,14,17,17],[17,18,17,21],[15,6,16,9],[19,26,19,28],[19,0,19,2],[19,6,19,9],[19,10,19,13],[19,14,19,17],[19,18,19,21],[19,22,19,25],[20,22,20,25],[20,26,20,28],[20,0,20,2],[20,6,20,9],[20,10,20,13],[20,14,20,17],[20,18,20,21]]}
[]
[]
[null,"Secretaría de Educación Pública del Estado de Baja California Sur"]
[null,"Dirección de Educación Secundaria"]
[null,"NIVELES DE COMUNICACIÓN Y PARTICIPACIÓN DE ALUMNOS"]
[null,"TERCER GRADO "]
[]
[null,null,null,null,null,null,"PERIODO EVALUACIÓN:",null,null,null,null,null,null,null,null,null,null,{"$f":"'PART 1'!R8","v":"CONCENTRADO GENERAL"}]
[null,null,null,null,null,null,"CICLO ESCOLAR :",null,null,null,null,null,null,null,null,null,null,{"$f":"'PART 1'!R9","v":"2020 - 2021"}]
[]
["DIRECCIÓN: ",null,null,null,null,null,{"$f":"'PART 1'!G11","v":"DIRECCIÓN DE EDUCACIÓN SECUNDARIA"}]
["DIRECTOR:",null,null,null,null,null,{"$f":"'Gráfica PCI 2'!E10","v":"PROFR. RUMUALDO RAMÍREZ GUTIÉRREZ"}]
[]
[]
[" COMUNICACIÓN Y PARTICIPACIÓN CON ALUMNOS  (Registrar cantidad de alumnos)"]
["MODALIDAD",null,null,"EXISTENCIA (Alumnos inscritos)",null,null,"COMUNICACIÓN Y PARTICIPACIÓN SOSTENIDA",null,null,null,"%",null,null,null,"COMUNICACIÓN Y PARTICIPACIÓN INTERMITENTE",null,null,null,"%",null,null,null,"COMUNICACIÓN PRÁCTICAMENTE INEXISTENTE",null,null,null,"%",null,null,"TOTAL"]
[null,null,null,"H","M","T"]
["I PERIODO",null,null,null,null,{"$f":"SUM(D18,E18)","v":0},8562,null,null,null,{"$f":"IFERROR(G18/F18*100,\"\")","v":""},null,null,null,3443,null,null,null,{"$f":"IFERROR(O18/F18*100,\"\")","v":""},null,null,null,2335,null,null,null,{"$f":"IFERROR(W18/F18*100,\"\")","v":""},null,null,{"$f":"SUM(G18,O18,W18)","v":14340}]
["II PERIODO",null,null,6554,6310,{"$f":"SUM(D19,E19)","v":12864},7070,null,null,null,{"$f":"IFERROR(G19/F19*100,\"\")","v":54.959577114427859},null,null,null,4184,null,null,null,{"$f":"IFERROR(O19/F19*100,\"\")","v":32.524875621890544},null,null,null,1610,null,null,null,{"$f":"IFERROR(W19/F19*100,\"\")","v":12.515547263681592},null,null,12864]
["III PERIODO",null,null,6459,6216,12675,9414,null,null,null,74.272189349112423,null,null,null,2805,null,null,null,22.130177514792898,null,null,null,456,null,null,null,3.5976331360946743,null,null,12675]
["TOTAL",null,null,{"$f":"SUM(D18:D20)","v":13013},{"$f":"SUM(E18:E20)","v":12526},{"$f":"SUM(F18:F20)","v":25539},{"$f":"SUM(G18:J20)","v":25046},null,null,null,98.069619014056926,null,null,null,{"$f":"SUM(O18:R20)","v":10432},null,null,null,40.847331532166493,null,null,null,{"$f":"SUM(W18:Z20)","v":4401},null,null,null,17.23246799013274,null,null,{"$f":"SUM(G21,O21,W21)","v":39879}]

{"sheet":"Gráfica PART 3","index":10,"n_rows":14,"n_cols":14,"rows_kept":14,"cut":false,"hidden":false,"merged":[[0,0,0,32],[2,1,2,29],[3,1,3,29],[4,1,4,29],[5,1,5,12],[5,13,5,25],[11,0,30,0],[6,1,6,12],[6,13,6,25],[8,0,8,2],[8,5,8,28],[9,0,9,2],[9,4,9,28]]}
[]
[]
[null,"Secretaría de Educación Pública del Estado de Baja California Sur"]
[null,"Dirección de Educación Secundaria"]
[null,"TERCER GRADO "]
[null,"PERIODO EVALUACIÓN:",null,null,null,null,null,null,null,null,null,null,null,{"$f":"'PART 1'!R8","v":"CONCENTRADO GENERAL"}]
[null,"CICLO ESCOLAR :",null,null,null,null,null,null,null,null,null,null,null,{"$f":"'PART 1'!R9","v":"2020 - 2021"}]
[]
["DIRECCIÓN: ",null,null,null,null,{"$f":"'PART 1'!G11","v":"DIRECCIÓN DE EDUCACIÓN SECUNDARIA"}]
["DIRECTOR:",null,null,null,{"$f":"'PART 3'!G12","v":"PROFR. RUMUALDO RAMÍREZ GUTIÉRREZ"}]
[]
[]
[null,null,null,"COMUNICACIÓN Y PARTICIPACIÓN SOSTENIDA","COMUNICACIÓN Y PARTICIPACIÓN INTERMITENTE","COMUNICACIÓN PRÁCTICAMENTE INEXISTENTE"]
[null,null,null,{"$f":"'PART 3'!K21/100","v":0.9806961901405693},{"$f":"'PART 3'!S21/100","v":0.40847331532166492},{"$f":"'PART 3'!AA21/100","v":0.17232467990132741}]

{"sheet":"PCI 3","index":11,"n_rows":32,"n_cols":13,"rows_kept":32,"cut":false,"hidden":false,"merged":[[31,5,31,12],[31,13,31,15],[29,13,29,15],[30,13,30,15],[29,5,29,12],[22,0,31,4],[22,5,22,12],[22,13,22,15],[23,5,23,12],[23,13,23,15],[24,5,24,12],[24,13,24,15],[25,5,25,12],[25,13,25,15],[26,5,26,12],[26,13,26,15],[27,5,27,12],[27,13,27,15],[28,5,28,12],[28,13,28,15],[30,5,30,12],[20,0,20,15],[17,8,17,9],[17,0,17,2],[17,12,17,15],[16,0,16,2],[16,12,16,15],[18,0,18,15],[14,8,14,9],[15,8,15,9],[16,8,16,9],[14,0,14,2],[14,12,14,15],[15,0,15,2],[15,12,15,15],[12,0,13,2],[12,3,12,15],[13,12,13,15],[13,8,13,9],[0,15,11,15],[2,1,2,13],[3,1,3,13],[4,1,4,13],[6,1,6,5],[6,6,6,10],[7,1,7,5],[7,6,7,10],[9,0,9,1],[9,2,9,11],[10,0,10,1],[10,2,10,11]]}
[]
[]
[null,"Secretaría de Educación Pública del Estado de Baja California Sur"]
[null,"Dirección de Educación Secundaria"]
[null,"TERCER GRADO "]
[]
[null,"PERIODO EVALUACIÓN:",null,null,null,null,{"$f":"'PART 1'!R8","v":"CONCENTRADO GENERAL"}]
[null,"CICLO ESCOLAR :",null,null,null,null,{"$f":"'PART 1'!R9","v":"2020 - 2021"}]
[]
["DIRECCIÓN: ",null,{"$f":"'PART 1'!G11","v":"DIRECCIÓN DE EDUCACIÓN SECUNDARIA"}]
["DIRECTOR:",null,{"$f":"'Gráfica PART 3'!E10","v":"PROFR. RUMUALDO RAMÍREZ GUTIÉRREZ"}]
[]
["MODALIDAD",null,null,"COMUNICACIÓN INTERMITENTE Y BAJA PARTICIPACIÓN EN ACTIVIDADES PROPUESTAS POR EL PROFESOR\n(Registrar cantidad de alumnos)"]
[null,null,null,"Español III","Matemáticas III","Segunda Lengua: Inglés III","Ciencias III (Énfasis en Química)","Historia II","Formación Cívica y Ética II",null,"Tecnología","Educación Física","Artes"]
["I PERIODO"]
["II PERIODO",null,null,2707,2843,2426,2900,2773,2721,null,2694,2543,3091]
["III PERIODO",null,null,2269,2630,2233,2589,2299,2380,null,2489,2351,2709]
["TOTAL",null,null,{"$f":"SUM(D15:D17)","v":4976},{"$f":"SUM(E15:E17)","v":5473},{"$f":"SUM(F15:F17)","v":4659},{"$f":"SUM(G15:G17)","v":5489},{"$f":"SUM(H15:H17)","v":5072},{"$f":"SUM(I15:J17)","v":5101},null,{"$f":"SUM(K15:K17)","v":5183},{"$f":"SUM(L15:L17)","v":4894},{"$f":"SUM(M15:M17)","v":5800}]
[]
[]
["RUBRO PARA IDENTIFICAR LAS CAUSAS SOBRE LA COMUNICACIÓN INTERMITENTE"]
[]
["Señale en orden de importancia  las tres principales causas que usted considere que han influido para que los alumnos mantengan una COMUNICACIÓN INTERMITENTE con sus maestras (os).                                                                                                                                                                                               Indique númericamente 1,2,3.",null,null,null,null,"Algunos alumnos se conectan desde un dispositivo móvil como el celular, através de recargas de datos, lo que origina que solo AVECES, y en algunas asignaturas, se puedan conectar para mantener comunicación con sus maestras (os) y envíar las actividades planteadas."]
[null,null,null,null,null,"Algunos alumnos trabajan para contribuir a los gastos en el hogar"]
[null,null,null,null,null,"Las condiciones de movilidad familiar, como el cambio de domicilio, visitar a parientes en horarios de clases, acudir al médico o realizar actividades fuera del hogar (por mencionar algunas), no le permiten al alumno mantenerse conectado regularmente con sus maestras (os) y envíar las actividades planteadas."]
[null,null,null,null,null,"Algunos alumnos no tienen acceso a ninguna herramienta de conectividad en el hogar para mantener una comunicación constante con sus maestras (os), por lo que requieren desplazarse a otros sitios donde puedan acceder a ellos, como ir a casa de un familiar, vecino o a un ciber-café para hacer uso de ellas, propiciando que no se mantengan regularmente comunicados."]
[null,null,null,null,null,"Algunos alumnos cuentan con una sola herramienta de conectividad en el hogar, y deben compartir su uso con otros integrantes de su familia (por ejemplo, con hermanos que también estudian) generando que no siempre puedan mantenerse conectados con sus maestras (os) y estar al corriente en la entrega de actividades planteadas."]
[null,null,null,null,null,"Algunos alumnos tienen todas las facilidades para acceder a las clases con sus maestras(os) y entregar oportunamente las actividades planteadas, pero no tienen el interés personal para hacerlo."]
[null,null,null,null,null,"Algunos alumnos se encuentran solos en el hogar durante la elaboración de las actividades planteadas por sus maestras (os), requiriendo de asesoría y supervisión para su elaboración, lo que propicia inseguridad en el envío de las mismas, optando por no mandarlas para su revisión y registro. "]
[null,null,null,null,null,"Algunos alumnos están padeciendo la ausencia de sus padres o de algún miembro de su familia a causa de enfermedad o la pérdida de un familiar en el hogar."]
[null,null,null,null,null,"Algunos alumnos se hacen cargo de sus hermanos menores, al estar ausente los padres por situación laboral u otra índole."]
[null,null,null,null,null,"Registre otras causas (si fuera el caso) \n\n"]

{"sheet":"Gráfica PCI 3","index":12,"n_rows":14,"n_cols":16,"rows_kept":14,"cut":false,"hidden":false,"merged":[[0,0,0,32],[2,1,2,29],[3,1,3,29],[4,1,4,29],[5,1,5,12],[5,13,5,25],[11,0,30,0],[6,1,6,12],[6,13,6,25],[8,0,8,2],[8,5,8,28],[9,0,9,2],[12,15,12,17],[13,15,13,17],[9,4,9,28]]}
[]
[]
[null,"Secretaría de Educación Pública del Estado de Baja California Sur"]
[null,"Dirección de Educación Secundaria"]
[null,"TERCER GRADO "]
[null,"PERIODO EVALUACIÓN:",null,null,null,null,null,null,null,null,null,null,null,{"$f":"'PART 1'!R8","v":"CONCENTRADO GENERAL"}]
[null,"CICLO ESCOLAR :",null,null,null,null,null,null,null,null,null,null,null,{"$f":"'PART 1'!R9","v":"2020 - 2021"}]
[]
["DIRECCIÓN: ",null,null,null,null,{"$f":"'PART 1'!G11","v":"DIRECCIÓN DE EDUCACIÓN SECUNDARIA"}]
["DIRECTOR:",null,null,null,{"$f":"'PCI 3'!C11","v":"PROFR. RUMUALDO RAMÍREZ GUTIÉRREZ"}]
[]
[]
[null,"Español III","Matemáticas III","Segunda Lengua: Inglés III","Ciencias III (Énfasis en Química)","Historia II","Formación Cívica y Ética II","Tecnología","Educación Física","Artes",null,null,null,null,null,"TOTAL"]
[null,{"$f":"'PCI 3'!D18/P14","v":0.10667352670053809},{"$f":"'PCI 3'!E18/P14","v":0.11732801680708299},{"$f":"'PCI 3'!F18/P14","v":9.9877805646665374E-2},{"$f":"'PCI 3'!G18/P14","v":0.11767101850065384},{"$f":"'PCI 3'!H18/P14","v":0.10873153686196325},{"$f":"'PCI 3'!I18/P14","v":0.10935322743156044},{"$f":"'PCI 3'!K18/P14","v":0.1111111111111111},{"$f":"'PCI 3'!L18/P14","v":0.10491564302098742},{"$f":"'PCI 3'!M18/P14","v":0.12433811391943747},null,null,null,null,null,{"$f":"SUM('PCI 3'!D18:P18)","v":46647}]